fUSD/lending_fUSD_20240812
["ID","MTS","AMOUNT","RATE_DAILY","PERIOD"]
[334705780,1723491032898,-1100.0,0.000109,3]
[334705781,1723491032907,-9760.22668691,0.000109,2]
[334705782,1723491032917,-2681.9773,0.000109,2]
[334705783,1723491032926,-151.02,0.0001099,2]
[334705784,1723491032936,-151.02,0.0001099,2]
[334705785,1723491032946,-151.02,0.0001099,2]
[334705786,1723491032956,-151.02,0.0001099,2]
[334705787,1723491032966,-151.02,0.0001099,2]
[334705788,1723491032976,-151.02,0.0001099,2]
[334705789,1723491032986,-151.02,0.0001099,2]
[334705790,1723491032995,-150.0,0.00010999,2]
[334705791,1723491033008,-35301.09075048,0.00011,2]
[334705794,1723491037792,-3186.03739143,0.00011,2]
[334705795,1723491037856,-390.35419242,0.00011,2]
[334705796,1723491038146,-583245.11837034,0.00011,2]
[334705797,1723491038158,-6612.25158562,0.00011,2]
[334705798,1723491038170,-64084.72565715,0.00011,2]
[334705938,1723491039754,-1347.10578871,0.00011,2]
[334705940,1723491039766,-1130.54686907,0.00011,2]
[334705953,1723491039845,-12166.95600629,0.00011,2]
[334705972,1723491039933,-1243.68746334,0.00011,2]
[334705975,1723491039945,-794.56361052,0.00011,2]
[334705991,1723491040020,-1596.3,0.00011,2]
[334706010,1723491040115,-264.63634558,0.00011,2]
[334706012,1723491040129,-795.10015625,0.00011,2]
[334706014,1723491040141,-5317.83192096,0.00011,2]
[334706017,1723491040152,-25029.48089212,0.00011,2]
[334706019,1723491040166,-500.0,0.00011,2]
[334706308,1723491043132,-1661.60734328,0.00011,2]
[334706310,1723491043144,-657.15745888,0.00011,2]
[334706312,1723491043156,-526.74479759,0.00011,2]
[334706315,1723491043167,-7764.0017081,0.00011,2]
[334706317,1723491043180,-6679.72932,0.00011,2]
[334706319,1723491043191,-661.3131406,0.00011,2]
[334706321,1723491043223,-38710.46975587,0.00011,2]
[334706322,1723491043234,-237564.23822191,0.00011,2]
[334706323,1723491043246,-1000.0,0.00011,2]
[334706324,1723491043258,-298.98429263,0.00011,2]
[334706325,1723491043274,-1516.6,0.00011,2]
[334706326,1723491043286,-9877.93689139,0.00011,2]
[334706327,1723491043297,-12143.50579793,0.00011,2]
[334706595,1723491045958,-37491.40606891,0.00011,2]
[334706597,1723491045971,-1529.47956354,0.00011,2]
[334706599,1723491045982,-508.07079341,0.00011,2]
[334706602,1723491045996,-660.54195458,0.00011,2]
[334706604,1723491046009,-1860.25869673,0.00011,2]
[334706606,1723491046020,-1138.65459664,0.00011,2]
[334706608,1723491046032,-1250.0945842,0.00011,2]
[334706610,1723491046043,-2218.84058109,0.00011,2]
[334706616,1723491046086,-1417.56443875,0.00011,2]
[334706618,1723491046098,-602.97103011,0.00011,2]
[334706620,1723491046114,-10401.00682633,0.00011,2]
[334706624,1723491046142,-4417.52516995,0.00011,2]
[334706626,1723491046154,-1326.68,0.00011,2]
[334706817,1723491047981,7114.12936849,9.396e-05,2]
[334706821,1723491048004,10000.0,9.396e-05,2]
[334706824,1723491048029,10000.0,9.396e-05,2]
[334706827,1723491048051,10000.0,9.396e-05,2]
[334706831,1723491048073,377.27670042,9.396e-05,2]
[334707197,1723491195995,9622.72329958,9.396e-05,2]
[334707198,1723491196017,10000.0,9.396e-05,2]
[334707199,1723491196038,10000.0,9.396e-05,2]
[334707200,1723491196060,6256.47810295,9.396e-05,2]
[334707201,1723491207581,1773.10822886,9.396e-05,2]
[334707202,1723491268536,212.68,9.218e-05,2]
[334707204,1723491295517,1757.73366819,9.218e-05,2]
[334707205,1723491295539,3.9471993,9.218e-05,2]
[334707206,1723491298317,196.71089893,9.218e-05,2]
[334707207,1723491299658,227.76686171,9.396e-05,2]
[334707208,1723491304196,155.0,9.218e-05,2]
[334707209,1723491311692,9416.57504006,9.218e-05,2]
[334707210,1723491311713,10000.0,9.218e-05,2]
[334707211,1723491311733,970.19160295,9.218e-05,2]
[334707212,1723491311936,200.0,9.218e-05,2]
[334707213,1723491317242,1309.79366313,9.218e-05,2]
[334707214,1723491323076,291.42187984,9.218e-05,2]
[334707215,1723491324500,2481.39853397,9.218e-05,2]
[334707216,1723491332472,692.80235,9.218e-05,2]
[334707217,1723491338291,871.98206993,9.218e-05,2]
[334707218,1723491390476,193.98112342,9.218e-05,2]
[334707219,1723491405652,485.6993547,9.218e-05,2]
[334707221,1723491471495,2502.72942206,9.218e-05,2]
[334707222,1723491471516,10000.0,9.218e-05,2]
[334707223,1723491471537,10000.0,9.218e-05,2]
[334707224,1723491471559,10000.0,9.218e-05,2]
[334707225,1723491471580,10000.0,9.218e-05,2]
[334707226,1723491471601,10000.0,9.218e-05,2]
[334707227,1723491471623,7497.27057794,9.218e-05,2]
[334707239,1723491815175,202.04,8.717e-05,2]
[334707241,1723491892955,-151.7,0.00010477,2]
[334707242,1723491892983,-1000.0,0.0001073,2]
[334707243,1723491893007,-231.57,0.00010767,2]
[334707244,1723491893030,-300.0,0.00010898,2]
[334707245,1723491893053,-2727.13378422,0.00010899,2]
[334707246,1723491893076,-150.0,0.00010899,2]
[334707247,1723491893099,-1289.7013,0.000109,2]
[334707248,1723491893121,-3360.0806,0.000109,2]
[334707249,1723491893144,-1904.5178,0.000109,2]
[334707250,1723491893166,-7378.0777,0.000109,2]
[334707251,1723491893188,-788.7556,0.000109,2]
[334707252,1723491893211,-6230.49891578,0.000109,2]
[334707269,1723492201693,-550.0,0.0001,2]
[334707270,1723492217651,-200.0,0.00010236,2]
[334707271,1723492217694,-558.42,0.00010353,2]
[334707272,1723492217719,-447.32,0.00010455,2]
[334707273,1723492217746,-250.0,0.0001068,2]
[334707274,1723492217772,-300.0,0.000108,3]
[334707275,1723492217798,-1898.89322015,0.000108,2]
[334707276,1723492217824,-6573.76007645,0.000109,2]
[334707278,1723492225806,-80830.79300777,0.000109,2]
[334707279,1723492225831,-785.6009,0.000109,2]
[334707280,1723492225857,-8784.20401821,0.000109,2]
[334707281,1723492225881,-413.15115888,0.000109,2]
[334707282,1723492225905,-170.50678652,0.000109,2]
[334707283,1723492225930,-162.72933545,0.000109,2]
[334707284,1723492225954,-600.0,0.000109,3]
[334707285,1723492225978,-153.68776239,0.000109,2]
[334707286,1723492226002,-179.62485198,0.000109,2]
[334707287,1723492227326,1100.6313186,0.0001,2]
[334707303,1723492231705,162.72933545,0.0001,2]
[334707311,1723492231908,-325.89,0.00010959,5]
[334707312,1723492232128,-7.584e-05,0.00010959,5]
[334707313,1723492233395,167.73613217,0.000109,2]
[334707316,1723492238012,-934.98992416,0.00010959,5]
[334707317,1723492238022,-37.40108875,0.00010973,2]
[334707455,1723492239755,170.50678652,0.0001,2]
[334707460,1723492239791,-162.59891125,0.00010973,2]
[334707462,1723492239801,-200.0,0.00010973,2]
[334707464,1723492239811,-202.04,0.00010981,2]
[334707466,1723492239820,-151.02,0.0001099,2]
[334707468,1723492239830,-151.02,0.0001099,2]
[334707470,1723492239839,-150.99,0.00010997,2]
[334707472,1723492239849,-818.16278068,0.00010997,2]
[334707474,1723492239860,-1629.06500109,0.00010999,3]
[334707476,1723492239870,-2317.39429655,0.00011,2]
[334707551,1723492240636,-207088.47411735,0.00011,2]
[334707557,1723492240702,-6358.60814003,0.00011,2]
[334707559,1723492240719,-591.458398,0.00011,2]
[334707562,1723492240731,-627472.16294457,0.00011,2]
[334707620,1723492243205,5906.02,0.00010848,2]
[334707621,1723492243217,-444.24779552,0.00011,2]
[334707622,1723492243230,-674.16794245,0.00011,2]
[334707623,1723492243246,-6802.53090105,0.00011,2]
[334707624,1723492243590,-529.685291,0.00011,2]
[334707625,1723492243601,-463.3999995,0.00011,2]
[334707626,1723492243612,-10992.66936184,0.00011,2]
[334707627,1723492243623,-2934.77971038,0.00011,2]
[334707628,1723492243633,-675.025,0.00011,2]
[334707629,1723492243644,-697.23822464,0.00011,2]
[334707630,1723492243655,-328.39001,0.00011,2]
[334707631,1723492243666,-2165.68177957,0.00011,2]
[334707632,1723492243678,-754.9399989,0.00011,2]
[334707633,1723492243702,-564.272112,0.00011,2]
[334707634,1723492243713,-1082.91734936,0.00011,2]
[334707635,1723492243725,-521.31163644,0.00011,2]
[334707636,1723492243744,-6644.55524363,0.00011,2]
[334707637,1723492243755,-508.68871004,0.00011,2]
[334707638,1723492243767,-338.33948636,0.00011,2]
[334707639,1723492243778,-305.67881732,0.00011,2]
[334707640,1723492243789,-147883.21554501,0.00011,2]
[334707641,1723492243798,-250.0,0.00011,2]
[334707642,1723492243807,-499.99,0.00011,2]
[334707643,1723492243816,-894.73,0.00011,2]
[334707644,1723492243825,-3000.0,0.00011,2]
[334707645,1723492243834,-151.02,0.00011095,2]
[334707646,1723492243844,-205.12082173,0.00011105,2]
[334707647,1723492243854,-9903.70253644,0.00011105,2]
[334707648,1723492243863,-3875.44196721,0.00011105,2]
[334707649,1723492243873,-4794.79266657,0.00011105,2]
[334707650,1723492243881,-10534.15307555,0.00011105,2]
[334707651,1723492243890,-175.60619042,0.00011105,2]
[334707652,1723492243900,-213.78684296,0.00011105,2]
[334707653,1723492243909,-396.52311045,0.00011105,2]
[334707654,1723492243918,-155.51506859,0.00011105,2]
[334707655,1723492243928,-3937.46359227,0.00011105,2]
[334707656,1723492243942,-2341.8386325,0.00011105,2]
[334707657,1723492243951,-3032.35761195,0.00011105,2]
[334707658,1723492243960,-1822.76560864,0.00011105,2]
[334707659,1723492243969,-1298.23330788,0.00011105,2]
[334707660,1723492243978,-15483.10746637,0.00011105,2]
[334707661,1723492243987,-198.12,0.00011146,2]
[334707662,1723492243995,-4005.13,0.00011152,2]
[334707663,1723492244004,-22511.62417737,0.00011173,2]
[334707664,1723492244031,-3265.01060924,0.00011173,2]
[334707665,1723492244042,-311.7686698,0.00011173,2]
[334707666,1723492244053,-571.571,0.00011173,2]
[334707667,1723492244072,-2447.60779868,0.00011173,2]
[334707668,1723492244083,-7440.45079688,0.00011173,2]
[334707670,1723492245681,345.50118713,0.00010873,2]
[334707681,1723492245905,-1494.17896266,0.00011028,2]
[334707682,1723492245915,-23451.96694803,0.00011173,2]
[334707683,1723492245925,-409.08139034,0.00011183,2]
[334707684,1723492246148,-4004.47525093,0.00011186,2]
[334707685,1723492246169,-844.76711332,0.00011186,2]
[334707686,1723492246259,-310.75725806,0.00011186,2]
[334707687,1723492246279,-1006.8,0.00011186,2]
[334707688,1723492246291,-3315.79394442,0.00011186,2]
[334707689,1723492246302,-907.5,0.00011186,2]
[334707690,1723492246313,-2427.55502287,0.00011186,2]
[334707695,1723492266560,238.09,9.185e-05,2]
[334707698,1723492386079,2108.88071553,0.000109,2]
[334707709,1723492682946,1000.04431147,0.000244,120]
[334707710,1723492755095,226.18,8.967e-05,2]
[334707711,1723492782742,22511.62417737,8.967e-05,2]
[334707712,1723493047555,6178.99480044,8.967e-05,2]
[334707724,1723493389730,228.7,8.453e-05,2]
[334707736,1723493432045,-349.08,0.00010366,2]
[334707737,1723493432055,-160.0,0.00010368,2]
[334707738,1723493432065,-250.0,0.00010409,2]
[334707739,1723493432074,-4005.13,0.00010413,2]
[334707740,1723493432083,-12879.76378947,0.00010444,2]
[334707741,1723493432150,-1235.997345,0.00010444,2]
[334707742,1723493432161,-566.49974,0.00010444,2]
[334707801,1723493437960,-319.94549499,0.00010444,2]
[334707802,1723493438016,-1302.71367905,0.00010444,2]
[334707803,1723493438028,-23943.05995149,0.00010444,2]
[334707804,1723493438038,-228.7,0.00010717,2]
[334707805,1723493438047,-2700.54,0.00010867,2]
[334707806,1723493438056,-155.0,0.00010869,2]
[334707807,1723493438066,-859.01909382,0.00010869,2]
[334707808,1723493438075,-440.08291615,0.00010869,2]
[334707809,1723493438084,-687.02501385,0.00010869,2]
[334707810,1723493438093,-202.97328291,0.00010869,2]
[334707811,1723493438103,-1371.41352364,0.00010869,2]
[334707812,1723493438112,-339.32,0.00010882,2]
[334707813,1723493438121,-840.0,0.00010902,2]
[334707814,1723493438131,-4996.7703879,0.0001099,2]
[334707815,1723493438140,-339.08895234,0.0001099,2]
[334707816,1723493438170,-160.90104766,0.0001099,2]
[334707817,1723493438179,-492.77796495,0.0001099,2]
[334707818,1723493438227,-1251.67203505,0.0001099,2]
[334707819,1723493438237,-250.0,0.00011,2]
[334707820,1723493438246,-174.11,0.00011093,2]
[334707821,1723493438256,-1059.75705196,0.00011105,2]
[334707822,1723493438315,-264.2020464,0.00011105,2]
[334707823,1723493438325,-3875.44196721,0.00011105,2]
[334707824,1723493438335,-9903.70253644,0.00011105,2]
[334707825,1723493438344,-264.49036255,0.00011105,2]
[334707826,1723493438354,-1139.1217656,0.00011105,2]
[334707827,1723493438363,-1275.64502519,0.00011105,2]
[334707828,1723493438372,-600.74422133,0.00011105,2]
[334707829,1723493438383,-5403.79429818,0.00011105,2]
[334707830,1723493438392,-892.72350459,0.00011105,2]
[334707831,1723493438401,-364.02,0.00011105,2]
[334707832,1723493438411,-595.07789582,0.00011105,2]
[334707833,1723493438426,-3121.02924387,0.00011105,2]
[334707834,1723493438436,-155.22608615,0.00011105,2]
[334707835,1723493438445,-2841.12816254,0.00011105,2]
[334707836,1723493438455,-723.413963,0.00011105,2]
[334707837,1723493438464,-255.19609183,0.00011105,2]
[334707838,1723493438474,-401.15362269,0.00011105,2]
[334707839,1723493438483,-921.56338905,0.00011105,2]
[334707840,1723493438492,-485.18668102,0.00011105,2]
[334707841,1723493438500,-2502.58566001,0.00011105,2]
[334707842,1723493438509,-365.80180037,0.00011105,2]
[334707843,1723493438518,-206.00767269,0.00011105,2]
[334707844,1723493438528,-400.0,0.00011105,2]
[334707845,1723493438537,-293.68354989,0.00011105,2]
[334707846,1723493438547,-236.34424982,0.00011105,2]
[334707847,1723493438556,-209.45746072,0.00011105,2]
[334707848,1723493438566,-211.73961936,0.00011105,2]
[334707849,1723493438576,-197.1386879,0.00011105,2]
[334707850,1723493438585,-155.0,0.00011105,2]
[334707851,1723493438595,-192.78575619,0.00011105,2]
[334707852,1723493438604,-493.59808335,0.00011105,2]
[334707853,1723493438614,-432.47832469,0.00011105,2]
[334707854,1723493438623,-270.58164358,0.00011105,2]
[334707855,1723493438633,-155.0,0.00011105,2]
[334707856,1723493438642,-211.06190242,0.00011105,2]
[334707858,1723493438652,-476.94280787,0.00011105,2]
[334707860,1723493438662,-155.0,0.00011105,2]
[334707862,1723493438674,-328.2488375,0.00011105,2]
[334707864,1723493438684,-243.25458866,0.00011105,2]
[334707866,1723493438694,-155.0,0.00011105,2]
[334707868,1723493438703,-8428.68305638,0.00011106,2]
[334707870,1723493438713,-9571.35,0.0001116,2]
[334707872,1723493438722,-155.0,0.00011161,2]
[334707874,1723493438731,-604.58050009,0.00011161,2]
[334707876,1723493438742,-12504.5725384,0.00011186,2]
[334707878,1723493438752,-35727.72779464,0.00011186,2]
[334707879,1723493438761,-155.0,0.00011186,2]
[334707881,1723493438771,-3000.0,0.00011186,2]
[334707883,1723493438781,-388.08345911,0.00011255,2]
[334707885,1723493438790,-30621.348,0.00011306,2]
[334707887,1723493438799,-358.97,0.00011309,2]
[334707889,1723493438808,-4794.79266657,0.00011321,2]
[334707891,1723493438819,-155.0,0.00011322,2]
[334707893,1723493438832,-305.85897424,0.00011322,2]
[334707895,1723493438841,-164.40260801,0.00011322,2]
[334707897,1723493438850,-155.0,0.00011324,2]
[334707899,1723493438860,-313.72504289,0.00011324,2]
[334707901,1723493438869,-15483.10746637,0.00011324,2]
[334707903,1723493438878,-250.86016717,0.00011384,2]
[334707905,1723493438887,-393.002,0.00011409,2]
[334707907,1723493438897,-1672.0,0.00011409,2]
[334707909,1723493438907,-5839.0,0.00011409,2]
[334707911,1723493438918,-5133.0,0.00011409,2]
[334707913,1723493438927,-21745.0,0.00011409,2]
[334707915,1723493438936,-1204.0,0.00011409,2]
[334707916,1723493438945,-420.3320603,0.00011422,2]
[334707918,1723493438954,-1257.0,0.00011613,2]
[334707920,1723493438964,-1942.927,0.00011613,2]
[334707922,1723493438973,-622.0,0.00011613,2]
[334707924,1723493438983,-1583.0,0.00011613,2]
[334707926,1723493438992,-555.0,0.00011613,2]
[334707928,1723493439001,-446.0,0.00011613,2]
[334707930,1723493439010,-1132.0,0.00011613,2]
[334707932,1723493439019,-843.151,0.00011613,2]
[334707934,1723493439028,-333.599,0.00011613,2]
[334707935,1723493439037,-150.0,0.00011613,2]
[334707937,1723493439046,-1182.0,0.00011613,2]
[334707939,1723493439055,-150.0,0.00011613,2]
[334707941,1723493439064,-1554.952,0.00011613,2]
[334707943,1723493439074,-160.0,0.00011664,2]
[334707945,1723493439083,-200.0,0.000118,4]
[334707947,1723493439092,-962.44601255,0.0001185,2]
[334707949,1723493439102,-500.0,0.000119,4]
[334707951,1723493439111,-358.0,0.000119,2]
[334707953,1723493439120,-600.0,0.00012,2]
[334707955,1723493439129,-165.14,0.00012033,2]
[334707957,1723493439137,-458.82325543,0.000122,2]
[334707959,1723493439146,-7500.0,0.000122,2]
[334707960,1723493439155,-150.0,0.00012224,2]
[334707962,1723493439164,-339.32,0.00012242,2]
[334707965,1723493439176,-150.0,0.00012245,2]
[334707967,1723493439185,-835.34,0.00012249,2]
[334707969,1723493439195,-1042.86233234,0.0001225,2]
[334707971,1723493439205,-840.0,0.00012265,2]
[334707973,1723493439216,-150.0,0.00012271,2]
[334707975,1723493439225,-150.0,0.00012272,2]
[334707976,1723493439234,-150.0,0.00012288,2]
[334707978,1723493439243,-151.02,0.0001229,2]
[334707980,1723493439252,-151.02,0.0001229,2]
[334707982,1723493439262,-151.02,0.0001229,2]
[334707984,1723493439271,-772.70929286,0.00012297,2]
[334707986,1723493439280,-1029.037763,0.000123,2]
[334707988,1723493439290,-315337.70643154,0.000123,4]
[334707990,1723493439303,-91768.34630141,0.000123,4]
[334707992,1723493439314,-569.78816292,0.000123,4]
[334707997,1723493439357,-808.97568557,0.000123,4]
[334708058,1723493439962,-1244.6844767,0.000123,4]
[334708060,1723493439977,-1565.80698242,0.000123,4]
[334708065,1723493440012,-160798.67604497,0.000123,4]
[334708067,1723493440021,-372565.08109222,0.000123,4]
[334708071,1723493440066,-635.093,0.000123,4]
[334708077,1723493440120,-807.73443717,0.000123,4]
[334708079,1723493440132,-1761.72,0.000123,4]
[334708081,1723493440143,-124417.25921189,0.000123,4]
[334708084,1723493440175,-1076.0,0.00011409,2]
[334708086,1723493440184,-1840.0,0.000123,4]
[334708090,1723493440229,-564.69346195,0.000123,4]
[334708092,1723493440240,-1185.22146851,0.000123,4]
[334708346,1723493442946,-894.73,0.00011,2]
[334708348,1723493442956,-215.87,0.00012,2]
[334708350,1723493442966,-215.87,0.00012,2]
[334708352,1723493442976,-215.87,0.00012,2]
[334708354,1723493442986,-215.87,0.00012,2]
[334708356,1723493442996,-215.87,0.00012,2]
[334708358,1723493443006,-215.87,0.00012,2]
[334708360,1723493443016,-3465.300559,0.000123,4]
[334708395,1723493443338,-265.7,0.000123,4]
[334708398,1723493443350,-340.68338463,0.000123,4]
[334708401,1723493443367,-428.85524841,0.000123,4]
[334708405,1723493443396,-215.87,0.00012,2]
[334708407,1723493443406,-250.45906793,0.000123,4]
[334708409,1723493443418,-5503.0,0.000123,4]
[334708411,1723493443429,-89681.0226769,0.000123,4]
[334708436,1723493443667,-2490.22338323,0.000123,4]
[334708438,1723493443680,-684.93719709,0.000123,4]
[334708441,1723493443700,-1895.41666077,0.000123,4]
[334708714,1723493446360,-215.87,0.00012,2]
[334708717,1723493446370,-215.87,0.00012,2]
[334708720,1723493446390,-137.06754221,0.00012,2]
[334708722,1723493446407,-78.80245779,0.00012,2]
[334708724,1723493446417,-215.87,0.00012,2]
[334708726,1723493446428,-215.87,0.00012,2]
[334708728,1723493446438,-215.87,0.00012,2]
[334708730,1723493446447,-215.87,0.00012,2]
[334708732,1723493446457,-215.87,0.00012,2]
[334708734,1723493446467,-215.87,0.00012,2]
[334708736,1723493446477,-215.87,0.00012,2]
[334708739,1723493446487,-215.87,0.00012,2]
[334708741,1723493446496,-215.87,0.00012,2]
[334708743,1723493446506,-215.87,0.00012,2]
[334708745,1723493446516,-215.87,0.00012,2]
[334708747,1723493446525,-17541.93110621,0.000123,4]
[334708749,1723493446537,-26965.36510827,0.000123,4]
[334708753,1723493446571,-215.87,0.00012,2]
[334708755,1723493446580,-832.13,0.000123,4]
[334708758,1723493446596,-349.85188945,0.000123,4]
[334709589,1723493844907,239.23,8.787e-05,2]
[334709590,1723493917431,550.0,0.0001,2]
[334709591,1723493987950,314.21057413,0.0001,2]
[334709592,1723493995871,217.3883246,0.0001,2]
[334709601,1723494626609,227.26,8.308e-05,2]
[334709609,1723494632247,-3959.5486066,0.00010098,2]
[334709610,1723494632257,-203.6,0.00010182,2]
[334709611,1723494632267,-5888.19,0.00010198,2]
[334709612,1723494632279,-9499.53314243,0.00010246,2]
[334709613,1723494632288,-155.2049921,0.00010246,2]
[334709614,1723494632297,-172.66294306,0.00010246,2]
[334709618,1723494632508,-313.72504289,0.00010246,2]
[334709619,1723494632518,-155.0,0.00010246,2]
[334709620,1723494632527,-264.49036255,0.00010246,2]
[334709621,1723494632538,-256.77918018,0.00010246,2]
[334709622,1723494632547,-211.73961936,0.00010246,2]
[334709623,1723494632558,-270.58164358,0.00010246,2]
[334709625,1723494632567,-209.45746072,0.00010246,2]
[334709627,1723494632577,-404.94420056,0.00010246,2]
[334709629,1723494632586,-227.26,0.00010572,2]
[334709631,1723494632596,-250.0,0.00010721,2]
[334709633,1723494632605,-174.54,0.00010731,2]
[334709635,1723494632614,-160.0,0.00010754,2]
[334709637,1723494632626,-904.0,0.00010794,2]
[334709639,1723494632636,-452.1366717,0.000109,2]
[334709640,1723494632646,-250.0,0.00010959,2]
[334709642,1723494632655,-150.99,0.00010959,2]
[334709644,1723494632664,-215.9049831,0.00010973,2]
[334709646,1723494632673,-151.02,0.0001099,2]
[334709648,1723494632683,-151.02,0.0001099,2]
[334709650,1723494632692,-151.02,0.0001099,2]
[334709651,1723494632702,-3102.20054343,0.00010997,2]
[334709652,1723494632711,-150.0,0.00010999,2]
[334709653,1723494632721,-499.99,0.00011,2]
[334709654,1723494632731,-146925.40858493,0.00011,2]
[334709655,1723494632742,-4483.0615723,0.00011,2]
[334709656,1723494632754,-805.27914092,0.00011,2]
[334709666,1723494638188,-7977.0,0.00011,2]
[334709668,1723494638413,-487.81340767,0.00011,2]
[334709840,1723494640139,-24869.23010947,0.00011,2]
[334709852,1723494640252,-5577.69796219,0.00011,2]
[334709854,1723494640269,-9511.12059182,0.00011,2]
[334709859,1723494640311,-34142.06872167,0.00011,2]
[334709860,1723494640327,-13253.22423378,0.00011,2]
[334709864,1723494640482,-681.26488617,0.00011,2]
[334709866,1723494640498,-78665.999395,0.00011,2]
[334710156,1723494643186,-953.70061537,0.00011,2]
[334710171,1723494643347,-1012.97035628,0.00011,2]
[334710173,1723494643358,-20492.59590905,0.00011,2]
[334710175,1723494643368,-823.08195931,0.00011,2]
[334710178,1723494643385,-680.06549859,0.00011,2]
[334710180,1723494643397,-3165.81931308,0.00011,2]
[334710183,1723494643419,-237564.23822191,0.00011,2]
[334710186,1723494643431,-643.71140223,0.00011,2]
[334710188,1723494643444,-613.09825755,0.00011,2]
[334710190,1723494643457,-293.75433028,0.00011,2]
[334710194,1723494643480,-10001.989951,0.00011,2]
[334710196,1723494643492,-328.32741597,0.00011,2]
[334710478,1723494646214,-1523.78274965,0.00011,2]
[334710480,1723494646226,-611.7165479,0.00011,2]
[334710486,1723494646275,-1340.97400387,0.00011,2]
[334710492,1723494646338,-399.1,0.00011,2]
[334710493,1723494646349,-12780.09052708,0.00011,2]
[334710494,1723494646410,-250.10479714,0.00011,2]
[334710495,1723494646422,-549.99,0.00011,2]
[334710496,1723494646434,-815.6971792,0.00011,2]
[334710750,1723495184671,200.00208695,0.00027,120]
[334710752,1723495470264,240.1,8.219e-05,2]
[334710753,1723495539155,1370.33350653,8.219e-05,2]
[334710754,1723495565878,189.79,9.991e-05,2]
[334710755,1723495638807,587.42874604,9.962e-05,2]
[334710756,1723495719139,173.55877246,9.958e-05,2]
[334710758,1723495738967,550.0,0.0001,2]
[334710759,1723495812709,1050.50799183,0.0001,2]
[334710765,1723495832317,-500.0,0.00010058,2]
[334710766,1723495832326,-42.67878054,0.00010058,2]
[334710768,1723495832338,-131.86121946,0.00010058,2]
[334710770,1723495832349,-196.4,0.00010074,2]
[334710772,1723495832359,-207.76,0.00010074,2]
[334710774,1723495832368,-167.35666372,0.00010097,2]
[334710779,1723495832413,-340.78735789,0.00010097,2]
[334710781,1723495832425,-436.06621227,0.00010097,2]
[334710782,1723495832437,-792.5901174,0.00010097,2]
[334710783,1723495832460,-440.06645098,0.00010097,2]
[334710817,1723495832882,-4118.47040795,0.00010097,2]
[334710818,1723495832893,-1974.8225,0.00010097,2]
[334710819,1723495832904,-876.11960137,0.00010097,2]
[334710820,1723495832931,-540.24248539,0.00010097,2]
[334710821,1723495832943,-5721.72820303,0.00010097,2]
[334710822,1723495832952,-250.0,0.0001012,2]
[334710823,1723495832963,-936.0,0.00010135,2]
[334710824,1723495832973,-150.0,0.00010192,2]
[334710825,1723495832983,-160.0,0.00010195,2]
[334710826,1723495832992,-603.41,0.00010201,2]
[334710827,1723495833001,-203.6,0.00010293,2]
[334710828,1723495833010,-240.1,0.00010481,2]
[334710829,1723495833019,-1096.63462912,0.0001078,2]
[334710830,1723495833028,-1149.88706248,0.0001078,2]
[334710831,1723495833038,-487.53,0.0001078,2]
[334710832,1723495833047,-1518.02409611,0.00010899,2]
[334710833,1723495833057,-8703.7603,0.000109,2]
[334710834,1723495833067,-29624.0,0.000109,2]
[334710835,1723495833076,-938.4516,0.000109,2]
[334710836,1723495833085,-259.8976,0.000109,2]
[334710837,1723495833095,-1000.0,0.000109,2]
[334710838,1723495833105,-2977.5183,0.000109,2]
[334710839,1723495833114,-391.1193,0.000109,2]
[334710840,1723495833124,-8534.58875719,0.000109,2]
[334710841,1723495833135,-412.7148911,0.000109,2]
[334710842,1723495833144,-444.302418,0.000109,2]